bitfinex/quotes_BTCUSD_20240918
["timestamp","ask_amount","ask_price","bid_price","bid_amount"]
[1726668653209,0.503346,59601.0,59600.0,0.005]
[1726668654063,0.503346,59601.0,59597.0,0.04984622]
[1726668654064,0.16779,59598.0,59597.0,0.04984622]
[1726668654494,0.503371,59598.0,59597.0,0.04984622]
[1726668654712,0.50338,59597.0,59596.0,0.04984622]
[1726668655154,0.335572,59600.0,59596.0,0.04984622]
[1726668655572,0.335572,59600.0,59597.0,0.001638]
[1726668655783,0.167791,59598.0,59597.0,0.010638]
[1726668656443,0.503372,59598.0,59597.0,0.010638]
[1726668656712,0.503372,59598.0,59597.0,0.001638]
[1726668656927,0.167791,59598.0,59597.0,0.001638]
[1726668657380,0.167789,59599.0,59597.0,0.001638]
[1726668657597,0.16779,59598.0,59597.0,0.001638]
[1726668658257,0.167788,59599.0,59597.0,0.001638]
[1726668658464,0.335563,59602.0,59597.0,0.001638]
[1726668658674,0.167789,59599.0,59597.0,0.001638]
[1726668658883,0.167787,59600.0,59597.0,0.009638]
[1726668659128,0.335567,59601.0,59597.0,0.009638]
[1726668659377,0.167789,59599.0,59597.0,0.009638]
[1726668659614,0.167789,59599.0,59598.0,0.04984622]
[1726668659837,0.16779,59598.0,59597.0,0.05148422]
[1726668660045,0.16779,59598.0,59597.0,0.05848422]
[1726668660545,1.174533,59598.0,59597.0,0.008638]
[1726668660791,0.838952,59598.0,59597.0,0.05848422]
[1726668661257,0.503371,59598.0,59597.0,0.05848422]
[1726668661474,0.503371,59598.0,59597.0,0.05148422]
[1726668661475,0.838952,59598.0,59597.0,0.05148422]
[1726668661696,0.838952,59598.0,59597.0,0.009638]
[1726668662131,0.838952,59598.0,59597.0,0.001638]
[1726668662345,0.838952,59598.0,59597.0,0.05480219]
[1726668662559,0.838952,59598.0,59597.0,0.004638]
[1726668662782,0.838952,59598.0,59597.0,0.001638]
[1726668663212,0.838952,59598.0,59597.0,0.05983316]
[1726668663643,0.838952,59598.0,59597.0,0.08488022]
[1726668663860,0.167786,59600.0,59597.0,0.08488022]
[1726668664084,0.0038882,59606.0,59600.0,0.33557]
[1726668664335,0.167771,59605.0,59604.0,0.05022927]
[1726668664549,0.167771,59605.0,59604.0,0.10045855]
[1726668664759,0.167773,59604.0,59603.0,0.12557319]
[1726668664968,0.5072002,59606.0,59603.0,0.12557319]
[1726668665185,0.5071972,59606.0,59605.0,0.10055272]
[1726668666599,0.167772,59605.0,59601.0,0.167781]
[1726668667342,0.3394292,59606.0,59600.0,0.15089742]
[1726668667343,0.0038882,59606.0,59605.0,0.167771]
[1726668667589,0.0038882,59606.0,59605.0,1.01834984]
[1726668667836,0.0038882,59606.0,59605.0,1.45389184]
[1726668668342,0.0038882,59606.0,59605.0,1.79243384]
[1726668668577,0.0038882,59606.0,59605.0,1.81943384]
[1726668669104,0.001638,59608.0,59605.0,1.81943384]
[1726668669105,0.001638,59608.0,59607.0,0.267765]
[1726668669349,0.001638,59608.0,59607.0,0.43081867]
[1726668669642,0.001638,59608.0,59607.0,1.11497806]
[1726668669864,0.001638,59608.0,59607.0,1.45050906]
[1726668670136,0.001638,59608.0,59607.0,1.78604006]
[1726668670416,0.001538,59608.0,59607.0,2.56567106]
[1726668670941,0.001538,59608.0,59607.0,2.15166106]
[1726668671165,0.001538,59608.0,59607.0,2.15869198]
[1726668671441,0.001538,59608.0,59607.0,1.45753998]
[1726668671695,0.001538,59608.0,59607.0,1.79307098]
[1726668672464,0.001538,59608.0,59607.0,1.81723664]
[1726668673011,0.001438,59608.0,59607.0,3.05186464]
[1726668673259,0.001438,59608.0,59607.0,3.17755464]
[1726668673557,0.001338,59608.0,59607.0,3.31885464]
[1726668673766,0.004744,59609.0,59608.0,1.735552]
[1726668674023,0.004744,59609.0,59608.0,2.48933898]
[1726668674284,0.004744,59609.0,59608.0,2.63896698]
[1726668675037,0.00082,59624.0,59623.0,0.838602]
[1726668675262,0.00082,59624.0,59623.0,0.12540602]
[1726668675469,0.00082,59624.0,59623.0,0.62856702]
[1726668675703,0.00082,59624.0,59623.0,0.12540602]
[1726668676163,0.167723,59622.0,59621.0,0.12540602]
[1726668676398,0.00082,59624.0,59619.0,0.05014746]
[1726668676621,0.503203,59618.0,59617.0,0.05014746]
[1726668676852,0.00082,59624.0,59615.0,0.05014746]
[1726668676853,0.16774,59616.0,59615.0,0.05014746]
[1726668677073,0.838715,59615.0,59614.0,0.05014746]
[1726668677347,0.503236,59614.0,59613.0,0.05014746]
[1726668677535,0.1603,59617.0,59612.0,0.05014746]
[1726668677536,0.503245,59613.0,59612.0,0.05014746]
[1726668677777,0.167754,59611.0,59610.0,0.05014746]
[1726668677996,0.167754,59611.0,59605.0,0.05014746]
[1726668677997,0.49166437,59611.0,59605.0,0.05014746]
[1726668678228,0.503304,59606.0,59605.0,0.05014746]
[1726668678467,0.167773,59604.0,59603.0,0.05014746]
[1726668678748,0.335533,59607.0,59603.0,0.05014746]
[1726668678978,0.167774,59604.0,59603.0,0.05014746]
[1726668679189,0.167774,59604.0,59602.0,0.05014746]
[1726668679415,0.16777,59606.0,59603.0,0.05014746]
[1726668679622,0.335509,59611.0,59603.0,0.05014746]
[1726668679831,0.335509,59611.0,59605.0,0.16777]
[1726668679832,0.16776,59609.0,59605.0,0.16777]
[1726668680061,0.16776,59609.0,59604.0,0.38569346]
[1726668680062,0.167771,59605.0,59604.0,0.05016851]
[1726668680265,0.167764,59608.0,59604.0,0.05016851]
[1726668680479,0.167767,59607.0,59603.0,0.21794251]
[1726668680696,0.167767,59607.0,59603.0,0.22094251]
[1726668681159,0.167771,59605.0,59603.0,0.05316851]
[1726668681605,0.5033,59607.0,59603.0,0.05316851]
[1726668681813,0.335503,59612.0,59603.0,0.05316851]
[1726668682029,0.167768,59606.0,59603.0,0.05016851]
[1726668682236,0.000819,59614.0,59603.0,0.05016851]
[1726668682237,0.167773,59604.0,59603.0,0.05016851]
[1726668682490,0.335553,59603.0,59601.0,0.05016851]
[1726668682703,0.838952,59598.0,59597.0,0.001638]
[1726668683142,0.167788,59599.0,59597.0,0.001638]
[1726668683355,0.16779,59598.0,59597.0,0.001638]
[1726668683564,0.503371,59598.0,59597.0,0.001638]
[1726668683788,0.1725,59600.0,59597.0,0.001638]
[1726668684005,0.503371,59598.0,59597.0,0.001638]
[1726668684639,0.1725,59600.0,59597.0,0.001638]
[1726668684852,0.335471,59618.0,59599.0,0.167787]
[1726668684853,0.167777,59603.0,59599.0,0.167787]
[1726668685077,0.167773,59605.0,59599.0,0.05016851]
[1726668685286,0.167771,59605.0,59601.0,0.21795051]
[1726668685492,0.167774,59604.0,59601.0,0.05016851]
[1726668685707,0.492617,59610.0,59601.0,0.05016851]
[1726668685912,0.167766,59607.0,59603.0,0.167775]
[1726668686121,0.1571,59610.0,59603.0,0.335552]
[1726668686380,0.1571,59610.0,59604.0,0.167772]
[1726668686381,0.167763,59608.0,59604.0,0.167772]
[1726668686789,0.167763,59608.0,59603.0,0.335552]
[1726668687230,0.167763,59608.0,59604.0,0.167773]
[1726668687441,0.1571,59610.0,59606.0,0.167767]
[1726668687678,0.1571,59610.0,59605.0,0.167771]
[1726668687908,0.167764,59608.0,59603.0,0.503326]
[1726668688125,0.492619,59610.0,59603.0,0.167776]
[1726668688126,0.167767,59607.0,59603.0,0.167776]
[1726668688776,0.1571,59610.0,59602.0,0.05016851]
[1726668688992,0.167766,59607.0,59601.0,0.38573151]
[1726668689204,0.167766,59607.0,59603.0,0.167776]
[1726668689430,0.000819,59614.0,59604.0,0.16305367]
[1726668689640,0.000819,59614.0,59611.0,0.167753]
[1726668690278,0.336311,59614.0,59607.0,0.38570785]
[1726668690495,0.167749,59613.0,59609.0,0.167759]
[1726668690702,0.167748,59613.0,59608.0,0.503284]
[1726668690929,0.000819,59614.0,59607.0,0.38570585]
[1726668691142,0.16775,59613.0,59609.0,0.167758]
[1726668691358,0.16775,59613.0,59608.0,0.335525]
[1726668691567,0.16775,59613.0,59609.0,0.167758]
[1726668691999,0.000819,59614.0,59605.0,0.41080977]
[1726668692000,0.1597924,59612.0,59605.0,0.05017985]
[1726668692229,0.335514,59610.0,59605.0,0.05017985]
[1726668692443,0.167768,59607.0,59604.0,0.05017985]
[1726668692921,0.15615637,59612.0,59604.0,0.05017985]
[1726668692922,0.167771,59605.0,59604.0,0.05017985]
[1726668693130,0.505164,59619.0,59601.0,0.1003597]
[1726668693131,0.50332,59604.0,59603.0,0.05017985]
[1726668693340,0.838867,59604.0,59603.0,0.05017985]
[1726668693549,0.503329,59603.0,59602.0,0.05017985]
[1726668693995,0.335547,59604.0,59601.0,0.05017985]
[1726668694206,0.167779,59602.0,59601.0,0.05017985]
[1726668694418,0.503338,59602.0,59601.0,0.05017985]
[1726668696071,0.838897,59602.0,59601.0,0.05017985]
[1726668696277,0.335564,59601.0,59599.0,0.05017985]
[1726668696504,0.9987174,59600.0,59599.0,0.05017985]
[1726668696707,0.503371,59598.0,59597.0,0.001638]
[1726668696916,0.838952,59598.0,59597.0,0.001638]
[1726668697132,1.174533,59598.0,59597.0,0.001638]
[1726668697977,0.838952,59598.0,59597.0,0.001638]
[1726668698590,0.813952,59598.0,59597.0,0.001638]
[1726668699659,1.49174304,59598.0,59597.0,0.001638]
[1726668699877,0.839095,59588.0,59587.0,0.05018396]
[1726668700086,0.023,59597.0,59583.0,0.05182196]
[1726668700087,0.167823,59587.0,59583.0,0.05182196]
[1726668700313,0.167819,59588.0,59584.0,0.167829]
[1726668700526,0.167826,59586.0,59583.0,0.001638]
[1726668700736,0.335638,59588.0,59583.0,0.001638]
[1726668700737,0.50349,59584.0,59583.0,0.001638]
[1726668701148,0.83915,59584.0,59583.0,0.001638]
[1726668701369,1.65726637,59584.0,59583.0,0.001638]
[1726668701663,1.32160637,59584.0,59583.0,0.001638]
[1726668701867,1.82032004,59584.0,59583.0,0.001638]
[1726668702303,2.15598004,59584.0,59583.0,0.001638]
[1726668702528,0.167875,59568.0,59567.0,0.05018396]
[1726668702778,0.167878,59567.0,59566.0,0.05018396]
[1726668703035,0.15615637,59570.0,59565.0,0.06088155]
[1726668703036,0.167881,59566.0,59565.0,0.06088155]
[1726668703281,1.49682337,59566.0,59565.0,0.01069759]
[1726668703587,0.669143,59566.0,59565.0,0.01069759]
[1726668703847,1.19095867,59566.0,59565.0,0.01069759]
[1726668704093,1.52872067,59566.0,59565.0,0.01069759]
[1726668704347,1.52672067,59566.0,59565.0,0.01069759]
[1726668704872,1.52972067,59566.0,59565.0,0.01069759]
[1726668705122,1.52872067,59566.0,59565.0,0.01069759]
[1726668705430,1.55872067,59566.0,59565.0,0.01069759]
[1726668705650,1.55872067,59566.0,59564.0,0.003925]
[1726668705651,1.200184,59565.0,59564.0,0.003925]
[1726668705909,1.36323767,59565.0,59564.0,0.003925]
[1726668706185,0.839417,59565.0,59564.0,0.003925]
[1726668706402,0.03,59575.0,59564.0,0.003925]
[1726668706403,0.02633806,59567.0,59564.0,0.003925]
[1726668706614,0.004,59566.0,59565.0,0.001]
[1726668707039,0.167878,59567.0,59564.0,0.003925]
[1726668707251,0.15615637,59572.0,59564.0,0.003925]
[1726668707488,0.50765,59565.0,59564.0,0.004925]
[1726668707709,0.50365,59565.0,59564.0,0.003925]
[1726668707955,0.839417,59565.0,59564.0,0.003925]
[1726668708389,1.36123767,59565.0,59564.0,0.003925]
[1726668708599,1.50473767,59565.0,59564.0,0.003925]
[1726668708822,1.50273767,59565.0,59564.0,0.003925]
[1726668709541,1.83850467,59565.0,59564.0,0.003925]
[1726668709971,2.076831,59565.0,59564.0,0.003925]
[1726668710418,2.074831,59565.0,59564.0,0.003925]
[1726668710672,2.078831,59565.0,59564.0,0.004925]
[1726668710872,1.741064,59565.0,59564.0,0.004925]
[1726668711149,2.078831,59565.0,59564.0,0.004925]
[1726668711388,1.43482533,59549.0,59548.0,0.00164]
[1726668711622,1.996479,59549.0,59548.0,0.00164]
[1726668711831,2.332336,59549.0,59548.0,0.00164]
[1726668712054,0.8627,59545.0,59544.0,0.001638]
[1726668712273,0.89117933,59541.0,59540.0,0.001638]
[1726668712491,0.35897,59529.0,59528.0,0.003925]
[1726668712695,1.429705,59529.0,59528.0,0.003925]
[1726668712900,2.101645,59529.0,59528.0,0.003925]
[1726668713123,1.763675,59529.0,59528.0,0.003925]
[1726668713793,1.765675,59529.0,59528.0,0.003925]
[1726668714006,1.230916,59528.0,59527.0,0.00051]
[1726668714219,1.230916,59528.0,59516.0,0.0031692]
[1726668714220,0.123,59523.0,59516.0,0.0031692]
[1726668714458,1.53345933,59517.0,59516.0,0.0031692]
[1726668714670,1.46177628,59517.0,59516.0,0.0049092]
[1726668714888,1.69610261,59517.0,59516.0,0.0049092]
[1726668715590,1.26006461,59517.0,59516.0,0.0049092]
[1726668715845,1.69610261,59517.0,59516.0,0.0049092]
[1726668716337,1.46177628,59517.0,59516.0,0.0049092]
[1726668716768,1.49177628,59517.0,59516.0,0.0049092]
[1726668717011,1.53357833,59511.0,59510.0,0.003925]
[1726668717263,1.46230567,59511.0,59510.0,0.003925]
[1726668717497,1.696632,59511.0,59510.0,0.003925]
[1726668717931,1.36056,59511.0,59510.0,0.003925]
[1726668718143,1.26056,59511.0,59510.0,0.003925]
[1726668718667,1.26056,59511.0,59510.0,0.053845]
[1726668718668,0.527108,59511.0,59510.0,0.053845]
[1726668718884,0.76143433,59511.0,59510.0,0.053845]
[1726668719095,1.26456,59511.0,59510.0,0.054845]
[1726668719308,1.600632,59511.0,59510.0,0.054845]
[1726668719522,1.26456,59511.0,59510.0,0.054845]
[1726668719767,1.600632,59511.0,59510.0,0.054845]
[1726668719971,1.26456,59511.0,59510.0,0.054845]
[1726668720401,1.26456,59511.0,59510.0,0.053845]
[1726668720402,1.26056,59511.0,59510.0,0.053845]
[1726668720843,1.26456,59511.0,59510.0,0.054845]
[1726668721264,1.26056,59511.0,59510.0,0.053845]
[1726668721506,1.26456,59511.0,59510.0,0.054845]
[1726668721961,1.26056,59511.0,59510.0,0.053845]
[1726668722199,1.596632,59511.0,59510.0,0.053845]
[1726668722431,1.26456,59511.0,59510.0,0.054845]
[1726668722646,0.928488,59511.0,59510.0,0.054845]
[1726668722863,1.36456,59511.0,59510.0,0.054845]
[1726668723294,1.700632,59511.0,59510.0,0.054845]
[1726668723792,1.36456,59511.0,59510.0,0.054845]
[1726668724049,0.027,59511.0,59510.0,0.054845]
[1726668724287,0.336046,59516.0,59510.0,0.10350394]
[1726668724535,0.168028,59514.0,59512.0,0.04964266]
[1726668724747,0.23432633,59518.0,59512.0,0.09956266]
[1726668724954,0.16801,59521.0,59514.0,0.38568779]
[1726668725161,0.168011,59520.0,59516.0,0.16802]
[1726668725407,0.23432633,59523.0,59516.0,0.04992]
[1726668725624,0.168012,59520.0,59516.0,0.04992]
[1726668725836,0.39738,59523.0,59516.0,0.04992]
[1726668726075,0.39738,59523.0,59517.0,0.504056]
[1726668726076,0.004,59518.0,59517.0,0.504056]
[1726668726293,0.503371,59529.0,59517.0,0.04992]
[1726668726510,0.23432633,59524.0,59517.0,0.04992]
[1726668726756,0.16305367,59528.0,59517.0,0.04992]
[1726668726973,0.168008,59521.0,59517.0,0.217938]
[1726668727185,0.023,59525.0,59518.0,0.168014]
[1726668727368,0.023,59522.0,59519.0,0.168012]
[1726668727495,0.167996,59525.0,59519.0,0.04992]
[1726668727709,0.23432633,59534.0,59519.0,0.04992]
[1726668727919,0.466,59542.0,59526.0,0.23432633]
[1726668728142,1.00816615,59541.0,59532.0,0.335948]
[1726668728356,0.466,59549.0,59539.0,0.167956]
[1726668728589,0.466,59549.0,59539.0,0.04992]
[1726668728590,1.17121982,59548.0,59539.0,0.04992]
[1726668728822,0.335874,59546.0,59539.0,0.04992]
[1726668729027,0.16305367,59548.0,59539.0,0.04992]
[1726668729028,0.004,59542.0,59539.0,0.04992]
[1726668729250,0.004,59542.0,59540.0,0.335908]
[1726668729490,0.167937,59546.0,59541.0,0.16795]
[1726668729735,0.23432633,59555.0,59541.0,0.04992]
[1726668729986,0.167948,59542.0,59541.0,0.04992]
[1726668730221,0.66689867,59542.0,59541.0,0.04992]
[1726668730640,1.00279567,59542.0,59541.0,0.04992]
[1726668731061,1.02579567,59542.0,59541.0,0.04992]
[1726668731483,1.36169267,59542.0,59541.0,0.04992]
[1726668731729,1.88958967,59542.0,59541.0,0.05092]
[1726668731970,1.88958967,59542.0,59515.0,1.05779894]
[1726668731971,0.168004,59523.0,59515.0,1.05779894]
[1726668732222,0.168004,59523.0,59515.0,1.00816615]
[1726668732469,0.023,59525.0,59515.0,0.336048]
[1726668732705,0.168003,59523.0,59518.0,0.168014]
[1726668732950,0.33599,59526.0,59519.0,0.168013]
[1726668733187,0.023,59531.0,59512.0,0.04963279]
[1726668733409,0.335948,59533.0,59514.0,0.04963279]
[1726668733410,0.023,59533.0,59514.0,0.04963279]
[1726668733615,0.023,59533.0,59531.0,0.167979]
[1726668733856,0.23432633,59546.0,59535.0,0.167967]
[1726668734092,0.335899,59542.0,59535.0,0.25197732]
[1726668734311,0.335899,59542.0,59536.0,0.167964]
[1726668734312,0.167954,59541.0,59536.0,0.167964]
[1726668734532,0.16305367,59542.0,59536.0,0.167964]
[1726668734533,0.16305367,59542.0,59536.0,0.08401032]
[1726668734742,0.167962,59537.0,59536.0,0.08401032]
[1726668734945,1.02586567,59537.0,59536.0,0.08401032]
[1726668735152,1.51817347,59537.0,59536.0,0.08401032]
[1726668735366,1.85609847,59537.0,59536.0,0.08401032]
[1726668735577,1.82971567,59537.0,59536.0,0.08401032]
[1726668736004,1.82971567,59537.0,59513.0,0.04963279]
[1726668736005,0.16802,59517.0,59513.0,0.04963279]
[1726668736210,0.53551782,59518.0,59511.0,0.04963279]
[1726668736411,0.19948482,59518.0,59513.0,0.168029]
[1726668736623,0.168017,59518.0,59511.0,0.04963279]
[1726668736856,0.168017,59518.0,59513.0,0.168029]
[1726668737086,0.168014,59519.0,59514.0,0.168027]
[1726668737501,0.33601,59522.0,59514.0,0.168027]
[1726668737776,0.023,59521.0,59517.0,0.168017]
[1726668737980,0.359015,59521.0,59517.0,0.08401032]
[1726668738201,0.168012,59520.0,59517.0,0.08401032]
[1726668738423,0.023,59521.0,59517.0,0.08401032]
[1726668738635,0.168016,59518.0,59517.0,0.08401032]
[1726668739315,0.73837433,59518.0,59517.0,0.08401032]
[1726668739988,0.23432633,59518.0,59517.0,0.08701032]
[1726668740212,0.168005,59522.0,59517.0,0.08701032]
[1726668740438,0.023,59525.0,59518.0,0.168015]
[1726668740682,0.18605367,59525.0,59519.0,0.336026]
[1726668740920,0.35405167,59525.0,59519.0,0.08401032]
[1726668741143,0.023,59529.0,59525.0,0.167996]
[1726668741381,0.023,59529.0,59525.0,0.08401032]
[1726668741382,0.023,59527.0,59525.0,0.08401032]
[1726668741629,0.23432633,59533.0,59525.0,0.08401032]
[1726668741842,0.335932,59536.0,59526.0,0.335987]
[1726668742133,0.167971,59534.0,59527.0,0.335979]
[1726668742355,0.16305367,59535.0,59528.0,0.335976]
[1726668742356,0.167969,59535.0,59528.0,0.335976]
[1726668742567,0.167963,59537.0,59530.0,0.335963]
[1726668742794,0.335919,59539.0,59533.0,0.167973]
[1726668742993,0.335905,59541.0,59533.0,0.167973]
[1726668742994,0.49897367,59538.0,59533.0,0.08401032]
[1726668743237,0.167967,59536.0,59533.0,0.08401032]
[1726668743458,0.167968,59535.0,59533.0,0.08401032]
[1726668743677,0.53054903,59534.0,59533.0,0.08401032]
[1726668743916,0.862855,59534.0,59533.0,0.08401032]
[1726668744208,0.190971,59534.0,59533.0,0.08401032]
[1726668744454,0.023,59534.0,59533.0,0.08401032]
[1726668744683,0.190969,59535.0,59533.0,0.08401032]
[1726668744902,0.190971,59534.0,59533.0,0.08401032]
[1726668745127,0.023,59537.0,59533.0,0.41995332]
[1726668745393,0.023,59537.0,59534.0,0.16797]
[1726668745607,0.57020133,59546.0,59534.0,0.08401032]
[1726668745844,0.335872,59547.0,59541.0,0.16795]
[1726668746057,0.23432633,59551.0,59541.0,0.08401032]
[1726668746290,0.503845,59542.0,59541.0,0.08401032]
[1726668746540,0.167948,59542.0,59541.0,0.08401032]
[1726668746773,0.503845,59542.0,59541.0,0.08401032]
[1726668747002,0.503845,59542.0,59541.0,0.08501032]
[1726668747509,0.503845,59542.0,59541.0,0.08401032]
[1726668747741,0.167948,59542.0,59541.0,0.08401032]
[1726668748688,0.167929,59549.0,59542.0,0.335894]
[1726668748940,0.335846,59552.0,59542.0,0.335894]
[1726668748941,0.023,59551.0,59544.0,0.05020251]
[1726668749201,0.023,59551.0,59544.0,0.08401032]
[1726668749438,0.167937,59546.0,59545.0,0.05020251]
[1726668749676,0.167937,59546.0,59545.0,0.13421283]
[1726668749677,0.503811,59546.0,59545.0,0.13421283]
[1726668749914,0.68986467,59546.0,59545.0,0.08401032]
[1726668750151,0.167937,59546.0,59545.0,0.08401032]
[1726668750867,0.023,59547.0,59545.0,0.08401032]
[1726668751093,0.023,59552.0,59545.0,0.08401032]
[1726668751336,0.00082,59554.0,59549.0,0.335852]
[1726668751588,0.00082,59554.0,59550.0,0.33585]
[1726668751814,0.00082,59554.0,59553.0,0.503752]
[1726668752040,0.00082,59554.0,59553.0,1.25943232]
[1726668752623,0.00072,59565.0,59564.0,0.839432]
[1726668752883,0.00072,59565.0,59564.0,1.91524199]
[1726668753149,0.00072,59565.0,59564.0,1.93336876]
[1726668753399,0.00072,59565.0,59564.0,1.91524199]
[1726668753660,0.00072,59565.0,59564.0,1.57946899]
[1726668753894,0.00062,59565.0,59564.0,1.58146899]
[1726668754127,0.00062,59565.0,59564.0,1.57946899]
[1726668754357,0.003925,59573.0,59572.0,1.175048]
[1726668754611,0.003925,59573.0,59572.0,1.42211199]
[1726668755765,0.003925,59573.0,59572.0,1.08638399]
[1726668756235,0.003925,59573.0,59572.0,0.25187432]
[1726668756488,0.003925,59573.0,59572.0,0.08401032]
[1726668756991,0.003925,59573.0,59572.0,0.5969596]
[1726668757248,0.003925,59573.0,59572.0,0.58760232]
[1726668757532,0.003925,59573.0,59572.0,0.59260232]
[1726668759134,0.003925,59573.0,59572.0,0.58760232]
[1726668759614,0.003925,59573.0,59572.0,0.92833032]
[1726668759846,0.003925,59573.0,59572.0,0.58760232]
[1726668760286,0.003925,59573.0,59572.0,0.93033032]
[1726668760524,0.003925,59573.0,59572.0,1.32071032]
[1726668761086,0.003925,59573.0,59572.0,1.66143832]
[1726668761341,0.003925,59573.0,59572.0,1.75643832]
[1726668762571,0.00082,59581.0,59572.0,0.91711832]
[1726668762829,0.00072,59581.0,59580.0,1.57051633]
[1726668763135,0.00072,59581.0,59580.0,2.169253]
[1726668763352,0.00072,59581.0,59580.0,2.25326332]
[1726668763602,0.00072,59581.0,59580.0,2.28326332]
[1726668763825,0.00072,59581.0,59580.0,2.31695332]
[1726668764287,0.00072,59581.0,59580.0,1.95127032]
[1726668764521,0.00072,59581.0,59580.0,1.71694399]
[1726668764741,0.00072,59581.0,59580.0,1.96127032]
[1726668764958,0.00072,59581.0,59580.0,2.29695332]
[1726668765198,0.00062,59581.0,59580.0,2.32895332]
[1726668765410,0.00062,59581.0,59580.0,1.99127032]
[1726668765624,0.00062,59581.0,59580.0,2.32695332]
[1726668766299,0.003925,59591.0,59580.0,2.32695332]
[1726668766300,0.003925,59591.0,59590.0,1.174691]
[1726668766552,0.003825,59591.0,59590.0,1.65608132]
[1726668766771,0.003825,59591.0,59590.0,1.42175499]
[1726668767423,0.003825,59591.0,59590.0,2.12170732]
[1726668767636,0.003825,59591.0,59590.0,3.09358032]
[1726668767867,0.003825,59591.0,59590.0,3.10758032]
[1726668768115,0.003825,59591.0,59590.0,3.0575274]
[1726668768368,0.003825,59591.0,59590.0,2.9473804]
[1726668768582,0.003825,59591.0,59590.0,2.9151564]
[1726668769007,0.003825,59591.0,59590.0,2.30659732]
[1726668769231,0.003825,59591.0,59590.0,2.36659732]
[1726668769513,0.003825,59591.0,59590.0,2.30659732]
[1726668769731,0.003825,59591.0,59590.0,2.33659732]
[1726668769949,0.003825,59591.0,59590.0,3.67085932]
[1726668770159,0.003825,59591.0,59590.0,3.7147484]
[1726668770160,0.003725,59591.0,59590.0,3.7147484]
[1726668770387,0.00082,59597.0,59590.0,3.7147484]
[1726668770388,0.00082,59597.0,59596.0,1.635854]
[1726668770617,2e-07,59606.0,59605.0,0.96132933]
[1726668770844,0.004744,59609.0,59607.0,1.733579]
[1726668771072,0.00082,59625.0,59613.0,0.533245]
[1726668771301,0.000719,59614.0,59613.0,4.09927932]
[1726668771515,0.000719,59614.0,59613.0,3.64839714]
[1726668771753,0.000719,59614.0,59613.0,3.42259632]
[1726668771960,0.000719,59614.0,59613.0,3.31215141]
[1726668772179,0.000719,59614.0,59613.0,3.10183644]
[1726668772392,0.000719,59614.0,59613.0,2.57485022]
[1726668772617,0.000719,59614.0,59613.0,2.52515432]
[1726668773826,0.000719,59614.0,59613.0,2.86065132]
[1726668774040,0.000719,59614.0,59613.0,2.55401632]
[1726668774261,0.000719,59614.0,59613.0,4.02466432]
[1726668774474,0.000719,59614.0,59613.0,4.02666432]
[1726668774713,0.000719,59614.0,59613.0,4.36266432]
[1726668774969,0.00082,59625.0,59613.0,4.36266432]
[1726668774970,0.00082,59625.0,59623.0,0.838602]
[1726668775182,0.00082,59625.0,59623.0,1.671423]
[1726668775392,0.00082,59625.0,59623.0,1.75543332]
[1726668775612,0.00082,59625.0,59623.0,1.18566599]
[1726668775837,0.00082,59625.0,59623.0,0.84968551]
[1726668776054,0.00082,59625.0,59623.0,0.84865207]
[1726668776269,0.00082,59625.0,59623.0,0.84814193]
[1726668776486,0.00082,59625.0,59623.0,0.51270093]
[1726668776705,0.00082,59625.0,59623.0,0.58717132]
[1726668777159,0.00082,59625.0,59623.0,0.41478399]
[1726668777379,0.00082,59625.0,59623.0,0.24706399]
[1726668777589,0.00082,59625.0,59623.0,0.26573032]
[1726668777806,0.00082,59625.0,59623.0,0.08401032]
[1726668778251,0.168537,59624.0,59623.0,0.09801032]
[1726668778445,0.16247495,59626.0,59623.0,0.09801032]
[1726668778705,0.171636,59627.0,59623.0,0.08401032]
[1726668778944,0.171636,59627.0,59623.0,0.09801032]
[1726668779153,0.171636,59627.0,59623.0,0.08401032]
[1726668779365,0.003925,59627.0,59623.0,0.08401032]
[1726668779882,0.171634,59627.0,59623.0,0.25173032]
[1726668780110,0.003925,59627.0,59623.0,0.08401032]
[1726668780549,0.503152,59624.0,59623.0,0.08401032]
[1726668780805,0.503152,59624.0,59623.0,0.09701032]
[1726668781090,0.503152,59624.0,59623.0,0.08401032]
[1726668781328,0.167717,59624.0,59623.0,0.08401032]
[1726668781601,0.167717,59624.0,59623.0,0.09001032]
[1726668781852,0.167717,59624.0,59623.0,0.08401032]
[1726668782098,0.167717,59624.0,59623.0,0.09401032]
[1726668782593,0.003925,59627.0,59626.0,0.167712]
[1726668782806,0.003925,59627.0,59626.0,0.08401032]
[1726668783435,0.004745,59627.0,59626.0,0.08401032]
[1726668784355,0.507872,59627.0,59626.0,0.08401032]
[1726668784565,0.172454,59627.0,59626.0,0.08401032]
[1726668785027,0.507872,59627.0,59626.0,0.08401032]
[1726668785444,0.507872,59627.0,59626.0,0.09001032]
[1726668786076,0.172454,59627.0,59626.0,0.09001032]
[1726668786292,0.004745,59627.0,59626.0,0.09001032]
[1726668786499,0.172454,59627.0,59626.0,0.09001032]
[1726668787127,0.84329,59627.0,59626.0,0.09001032]
[1726668787551,0.507872,59627.0,59626.0,0.09001032]
[1726668788106,0.507872,59627.0,59626.0,0.08401032]
[1726668788323,0.172454,59627.0,59626.0,0.08401032]
[1726668788564,0.84329,59627.0,59626.0,0.08901032]
[1726668789239,0.507872,59627.0,59626.0,0.08901032]
[1726668790542,0.172454,59627.0,59626.0,0.08901032]
[1726668790766,0.507872,59627.0,59626.0,0.08901032]
[1726668790983,0.84329,59627.0,59626.0,0.08901032]
[1726668791201,0.507872,59627.0,59626.0,0.08901032]
[1726668791466,0.172454,59627.0,59626.0,0.08901032]
[1726668791680,0.004745,59627.0,59626.0,0.25672232]
[1726668791893,0.172454,59627.0,59626.0,0.08901032]
[1726668792956,0.84329,59627.0,59626.0,0.08901032]
[1726668793175,1.60243433,59627.0,59626.0,0.08901032]
[1726668793388,1.93785233,59627.0,59626.0,0.08901032]
[1726668793606,2.100906,59627.0,59626.0,0.08901032]
[1726668793822,2.100906,59627.0,59626.0,0.08401032]
[1726668794249,2.11800611,59627.0,59626.0,0.08401032]